bitfinex/quotes_SOLUSD_20250621
["timestamp","ask_amount","ask_price","bid_price","bid_amount"]
[1750539531697,0.75,138.65,138.62,7.21396623]
[1750539532986,9.8262503,138.63,138.59,7.21552781]
[1750539533174,10.5805503,138.64,138.6,9.8162503]
[1750539533985,11.3305503,138.64,138.6,9.8162503]
[1750539534375,9.8262503,138.63,138.59,35.07059764]
[1750539534618,0.75,138.62,138.59,7.21552781]
[1750539535102,9.8262503,138.62,138.59,7.21552781]
[1750539535308,1.5043,138.64,138.59,7.21552781]
[1750539535309,9.8262503,138.61,138.59,7.21552781]
[1750539536103,9.8262503,138.61,138.58,7.21604849]
[1750539539615,0.75,138.61,138.58,7.21604849]
[1750539540287,9.0762503,138.61,138.58,7.21604849]
[1750539540486,0.75,138.6,138.58,7.21604849]
[1750539541895,26.75,138.62,138.58,7.21604849]
[1750539542211,0.75,138.61,138.58,7.21604849]
[1750539543413,9.0762503,138.61,138.58,7.21604849]
[1750539543608,0.75,138.6,138.58,7.21604849]
[1750539545089,35.0762503,138.62,138.58,7.21604849]
[1750539545405,0.75,138.61,138.58,7.21604849]
[1750539547315,0.75,138.61,138.58,34.33242001]
[1750539548098,0.75,138.61,138.58,16.29229879]
[1750539550721,9.0762503,138.6,138.58,7.21604849]
[1750539551023,0.75,138.6,138.58,7.21604849]
[1750539555118,0.75,138.6,138.57,7.21656924]
[1750539557114,9.8262503,138.6,138.57,7.21656924]
[1750539558828,9.0762503,138.61,138.58,0.72]
[1750539559207,9.0762503,138.6,138.57,7.21656924]
[1750539559407,9.7662503,138.6,138.57,7.21656924]
[1750539561520,0.69,138.6,138.57,7.21656924]
[1750539562630,35.7662503,138.62,138.58,0.72]
[1750539563303,9.0762503,138.62,138.57,35.05424264]
[1750539563510,9.7662503,138.61,138.57,35.05424264]
[1750539567120,0.69,138.61,138.57,35.05424264]
[1750539573059,0.69,138.61,138.57,31.81342306]
[1750539573921,0.69,138.59,138.57,7.21656924]
[1750539574335,0.69,138.58,138.56,7.2168606]
[1750539574715,6.52543072,138.58,138.56,7.2168606]
[1750539575554,6.52543072,138.58,138.55,7.21761097]
[1750539575744,6.52543072,138.57,138.51,18.04810434]
[1750539575922,6.52543072,138.57,138.53,5.83543072]
[1750539576123,0.69,138.57,138.53,5.83543072]
[1750539576322,5.83543072,138.58,138.53,5.83543072]
[1750539576647,6.52543072,138.58,138.54,0.72]
[1750539576952,9.81287511,138.58,138.54,0.72]
[1750539577131,1.6123,138.59,138.54,9.12287511]
[1750539577329,9.12287511,138.58,138.55,7.21761097]
[1750539577529,9.81287511,138.58,138.55,7.21761097]
[1750539578451,0.69,138.57,138.55,7.21761097]
[1750539579437,0.69,138.57,138.53,16.3415281]
[1750539579645,9.12287511,138.57,138.53,16.3415281]
[1750539579840,0.69,138.56,138.53,16.3415281]
[1750539580655,0.69,138.57,138.53,17.0615281]
[1750539582248,2.3423,138.59,138.54,9.84287511]
[1750539582426,2.3423,138.59,138.56,9.12287511]
[1750539582626,1.6123,138.59,138.56,0.72]
[1750539582830,1.6123,138.59,138.56,9.84287511]
[1750539583035,1.6123,138.59,138.53,0.72]
[1750539583237,1.6123,138.59,138.55,9.12287511]
[1750539583554,2.3423,138.59,138.55,9.84287511]
[1750539584458,2.3423,138.59,138.56,7.21709006]
[1750539585055,6.1896,138.6,138.58,9.12287511]
[1750539585234,8.8184,138.63,138.59,9.84287511]
[1750539585435,8.8184,138.63,138.59,0.72]
[1750539585750,9.12287511,138.61,138.57,9.12287511]
[1750539585956,0.73,138.6,138.57,9.12287511]
[1750539587134,0.73,138.6,138.58,7.21604849]
[1750539588027,0.73,138.6,138.57,7.21639575]
[1750539588228,0.73,138.59,138.56,7.21692364]
[1750539588459,9.85287511,138.59,138.56,7.21692364]
[1750539588966,0.73,138.58,138.56,7.21692364]
[1750539589166,9.12287511,138.58,138.54,16.34100705]
[1750539589376,0.73,138.57,138.54,7.21813194]
[1750539589863,8.0933,138.58,138.54,7.21813194]
[1750539590030,0.73,138.57,138.54,7.21813194]
[1750539596035,9.12287511,138.56,138.53,7.21848056]
[1750539596243,0.73,138.56,138.53,7.21848056]
[1750539596463,8.8233,138.58,138.54,9.84287511]
[1750539597242,8.8233,138.58,138.55,0.72]
[1750539597243,8.0933,138.58,138.55,0.72]
[1750539597879,8.0933,138.58,138.54,9.84287511]
[1750539598174,8.0933,138.58,138.55,7.21761097]
[1750539599969,17.94617511,138.58,138.55,7.21761097]
[1750539600173,0.73,138.57,138.52,25.98599715]
[1750539600378,0.73,138.57,138.53,9.12287511]
[1750539600759,9.85287511,138.57,138.53,9.12287511]
[1750539601060,0.73,138.56,138.53,9.12287511]
[1750539601239,9.12287511,138.57,138.53,9.12287511]
[1750539601576,0.73,138.57,138.53,9.84287511]
[1750539602345,0.73,138.57,138.54,7.21813194]
[1750539604475,17.21617511,138.58,138.54,7.21813194]
[1750539604776,1.5177,138.58,138.56,9.12287511]
[1750539604979,1.5177,138.58,138.56,9.84287511]
[1750539605176,2.2477,138.58,138.54,7.21813194]
[1750539605354,2.2477,138.58,138.54,17.06100705]
[1750539605548,1.5177,138.58,138.56,9.12287511]
[1750539605754,1.5177,138.58,138.57,9.12287511]
[1750539605990,148.0,138.59,138.57,9.12287511]
[1750539606351,148.0,138.59,138.58,17.0589236]
[1750539607360,7.6416,138.64,138.58,34.37904482]
[1750539607559,1.6397,138.64,138.6,0.72]
[1750539607762,1.6397,138.64,138.63,9.12287511]
[1750539607999,1.6397,138.64,138.61,9.12287511]
[1750539608367,1.6397,138.64,138.62,7.21396623]
[1750539608684,155.5308,138.67,138.63,9.12287511]
[1750539608891,7.47329547,138.7,138.66,9.12287511]
[1750539608892,15.38469547,138.7,138.66,9.12287511]
[1750539609087,7.9114,138.7,138.67,9.12287511]
[1750539610400,7.9114,138.7,138.68,7.21084511]
[1750539611400,7.9114,138.7,138.67,16.33410937]
[1750539611604,17.75427511,138.7,138.67,7.21123426]
[1750539612198,8.6314,138.7,138.67,7.21123426]
[1750539612371,9.84287511,138.69,138.65,7.21240533]
[1750539612713,9.84287511,138.69,138.65,16.33528044]
[1750539613977,9.84287511,138.68,138.65,7.21240533]
[1750539614786,9.12287511,138.68,138.65,7.21240533]
[1750539614985,9.84287511,138.68,138.65,7.21240533]
[1750539615785,9.84287511,138.68,138.64,7.21292556]
[1750539616193,0.72,138.67,138.64,7.21292556]
[1750539616582,9.12287511,138.68,138.64,7.21292556]
[1750539616797,9.84287511,138.68,138.64,16.33580067]
[1750539617920,9.12287511,138.69,138.64,16.33580067]
[1750539618076,7.9114,138.7,138.68,9.12287511]
[1750539618573,7.9114,138.7,138.67,0.68]
[1750539618904,6.4331,138.73,138.7,0.68]
[1750539619073,6.4331,138.73,138.71,9.12287511]
[1750539619279,6.4331,138.73,138.7,9.12287511]
[1750539619991,6.4331,138.73,138.71,7.20928555]
[1750539620191,0.72,138.72,138.7,7.20961445]
[1750539621483,15.55597511,138.73,138.7,7.20961445]
[1750539621690,16.27597511,138.73,138.7,7.20961445]
[1750539621879,16.27597511,138.73,138.68,25.23766527]
[1750539622083,16.27597511,138.73,138.69,9.12287511]
[1750539622793,149.6113,138.74,138.69,9.12287511]
[1750539622976,159.45417511,138.74,138.7,9.12287511]
[1750539623182,9.84287511,138.73,138.69,9.12287511]
[1750539624802,9.84287511,138.73,138.7,7.20980533]
[1750539626492,9.12287511,138.73,138.7,7.20980533]
[1750539626693,0.72,138.7,138.66,27.15253513]
[1750539626896,9.84287511,138.7,138.66,27.15253513]
[1750539627099,9.84287511,138.7,138.67,7.21136511]
[1750539627607,0.72,138.69,138.66,7.21167066]
[1750539629303,0.72,138.69,138.63,9.12287511]
[1750539629304,9.12287511,138.67,138.63,9.12287511]
[1750539629478,9.12287511,138.66,138.61,7.21448668]
[1750539629682,9.84287511,138.64,138.61,7.21448668]
[1750539630284,9.84287511,138.63,138.6,7.21478515]
[1750539630604,11.34927511,138.62,138.57,9.12287511]
[1750539630804,11.34927511,138.62,138.58,9.12287511]
[1750539631305,2.2264,138.62,138.58,9.12287511]
[1750539631514,1.5064,138.65,138.61,9.80287511]
[1750539631684,1.5064,138.65,138.62,9.12287511]
[1750539631886,1.5064,138.65,138.61,9.12287511]
[1750539632198,1.5064,138.65,138.62,7.21396623]
[1750539632594,9.12287511,138.64,138.62,7.21396623]
[1750539632794,9.84287511,138.64,138.62,7.21396623]
[1750539633137,9.12287511,138.64,138.62,7.21396623]
[1750539633294,9.84287511,138.63,138.6,7.21500721]
[1750539633494,9.12287511,138.63,138.6,7.21500721]
[1750539633694,9.12287511,138.64,138.6,7.21500721]
[1750539634100,9.84287511,138.64,138.6,7.21500721]
[1750539636311,1.5064,138.65,138.61,9.80287511]
[1750539637593,1.5064,138.65,138.62,16.33684134]
[1750539637794,1.5064,138.65,138.62,7.21396623]
[1750539640221,2.2264,138.65,138.62,7.21396623]
[1750539640387,1.5064,138.65,138.62,7.21396623]
[1750539641922,2.1864,138.65,138.62,7.21396623]
[1750539642523,2.1864,138.65,138.6,25.25252524]
[1750539642709,11.30927511,138.65,138.61,9.12287511]
[1750539643110,1.5064,138.65,138.61,9.85287511]
[1750539643413,1.5064,138.65,138.63,9.12287511]
[1750539644610,1.5064,138.65,138.64,7.21292556]
[1750539645019,11.30927511,138.65,138.64,7.21292556]
[1750539645343,11.30927511,138.65,138.62,7.21396623]
[1750539647329,6.1176,138.64,138.6,9.12287511]
[1750539647629,0.68,138.63,138.6,9.12287511]
[1750539647996,6.1176,138.64,138.6,9.12287511]
[1750539648193,6.7976,138.64,138.6,9.12287511]
[1750539648508,6.7976,138.64,138.58,0.73]
[1750539648713,15.92047511,138.64,138.59,9.12287511]
[1750539649524,15.92047511,138.64,138.59,34.37722245]
[1750539649722,0.68,138.63,138.59,34.37722245]
[1750539650030,0.68,138.61,138.59,7.21552781]
[1750539650401,9.12287511,138.63,138.59,34.37722245]
[1750539650608,0.68,138.63,138.59,34.37722245]
[1750539650806,9.12287511,138.63,138.59,34.37722245]
[1750539651125,0.68,138.61,138.59,7.21552781]
[1750539651316,0.68,138.61,138.58,7.21604849]
[1750539651514,9.12287511,138.61,138.58,7.21604849]
[1750539651828,0.68,138.6,138.58,7.21604849]
[1750539652205,0.68,138.59,138.58,7.21604849]
[1750539654136,0.68,138.59,138.57,7.21656924]
[1750539656429,1.6177,138.62,138.56,7.21709006]
[1750539656610,1.6177,138.62,138.56,16.33996517]
[1750539656611,9.80287511,138.6,138.56,16.33996517]
[1750539657941,9.12287511,138.59,138.56,7.21709006]
[1750539658122,0.68,138.58,138.56,7.21709006]
[1750539658516,9.80287511,138.58,138.55,7.21761097]
[1750539659933,15.14087511,138.58,138.55,7.21761097]
[1750539660109,2.1892,138.56,138.52,7.21908398]
[1750539660310,0.68,138.54,138.52,7.21908398]
[1750539660505,9.12287511,138.53,138.48,7.22125938]
[1750539660728,9.80287511,138.52,138.48,7.22125938]
[1750539660930,15.82087511,138.52,138.48,7.22125938]
[1750539661334,6.698,138.52,138.48,7.22125938]
[1750539661533,9.12287511,138.51,138.48,7.22125938]
[1750539662515,6.698,138.52,138.48,7.22125938]
[1750539662516,15.82087511,138.52,138.48,7.22125938]
[1750539662918,35.12287511,138.55,138.5,9.12287511]
[1750539663108,35.80287511,138.55,138.5,9.85287511]
[1750539663325,9.80287511,138.54,138.49,9.12287511]
[1750539663664,9.80287511,138.53,138.49,9.12287511]
[1750539663815,0.68,138.52,138.48,34.39728295]
[1750539664018,9.80287511,138.52,138.48,34.39728295]
[1750539665553,9.12287511,138.53,138.48,34.39728295]
[1750539665928,9.80287511,138.53,138.48,25.27440784]
[1750539666128,9.80287511,138.53,138.48,34.39728295]
[1750539668328,9.80287511,138.52,138.48,16.34413449]
[1750539669222,9.12287511,138.51,138.48,7.22125938]
[1750539669416,9.80287511,138.51,138.48,7.22125938]
[1750539672146,9.80287511,138.51,138.46,0.73]
[1750539672147,9.80287511,138.51,138.46,7.22230247]
[1750539672362,9.80287511,138.5,138.46,7.22230247]
[1750539672538,16.22437511,138.5,138.46,7.22230247]
[1750539673246,16.22437511,138.5,138.46,16.34517758]
[1750539673454,6.4215,138.5,138.47,9.80287511]
[1750539674359,9.80287511,138.49,138.46,7.2220916]
[1750539674572,9.80287511,138.47,138.43,9.12287511]
[1750539674728,9.80287511,138.48,138.43,9.80287511]
[1750539675129,9.12287511,138.49,138.44,9.12287511]
[1750539675429,9.80287511,138.49,138.44,9.80287511]
[1750539675751,9.12287511,138.49,138.45,7.22282412]
[1750539675946,9.80287511,138.48,138.45,7.22282412]
[1750539676571,0.68,138.45,138.41,9.12287511]
[1750539676857,9.80287511,138.45,138.41,9.12287511]
[1750539677155,1.5893,138.46,138.41,9.12287511]
[1750539677156,1.5893,138.46,138.42,9.80287511]
[1750539677524,10.71217511,138.46,138.43,7.22386765]
[1750539677963,11.39217511,138.46,138.43,7.22386765]
[1750539678256,11.39217511,138.46,138.41,16.3477866]
[1750539678257,9.80287511,138.45,138.41,16.3477866]
[1750539678467,0.68,138.45,138.41,7.22491149]
[1750539678757,9.80287511,138.44,138.41,7.22491149]
[1750539679558,6.4804,138.45,138.41,7.22491149]
[1750539679559,16.28327511,138.45,138.41,7.22491149]
[1750539680552,1.5893,138.46,138.44,9.12287511]
[1750539681058,1.5893,138.46,138.41,25.96719022]
[1750539681237,1.5893,138.46,138.43,9.12287511]
[1750539682036,9.12287511,138.45,138.41,25.28719022]
[1750539682241,9.80287511,138.45,138.41,9.12287511]
[1750539682447,9.80287511,138.44,138.4,16.34830863]
[1750539682764,16.28327511,138.44,138.4,7.22543352]
[1750539682972,9.80287511,138.43,138.4,7.22543352]
[1750539683375,9.80287511,138.42,138.4,7.22543352]
[1750539683536,9.12287511,138.41,138.38,7.22647781]
[1750539683847,9.80287511,138.41,138.38,7.22647781]
[1750539684965,9.12287511,138.41,138.38,7.22647781]
[1750539685142,164.28327511,138.44,138.39,9.12287511]
[1750539686260,164.28327511,138.44,138.4,7.22543352]
[1750539687750,9.12287511,138.43,138.4,7.22543352]
[1750539689685,155.1604,138.44,138.4,7.22543352]
[1750539689686,9.80287511,138.42,138.4,7.22543352]
[1750539689857,9.80287511,138.42,138.38,9.12287511]
[1750539690460,9.80287511,138.42,138.39,7.22595563]
[1750539691074,10.64457511,138.4,138.35,6.52]
[1750539691247,9.80287511,138.39,138.36,7.2275224]
[1750539692378,9.80287511,138.39,138.35,7.22804481]
[1750539693154,9.80287511,138.39,138.35,16.35091992]
[1750539695686,1.5217,138.4,138.35,35.10103195]
[1750539695856,10.64457511,138.4,138.36,9.80287511]
[1750539696378,10.64457511,138.4,138.36,9.12287511]
[1750539696548,10.64457511,138.4,138.37,7.22700007]
[1750539697759,11.32457511,138.4,138.37,7.22700007]
[1750539698355,9.12287511,138.39,138.37,7.22700007]
[1750539698583,9.80287511,138.39,138.36,7.2275224]
[1750539698758,16.41827511,138.38,138.33,18.07248563]
[1750539698956,16.41827511,138.38,138.34,16.3514424]
[1750539699191,16.41827511,138.38,138.34,7.22856729]
[1750539699684,9.12287511,138.37,138.34,7.22856729]
[1750539699867,6.6154,138.38,138.34,25.97998553]
[1750539700071,6.6154,138.38,138.34,35.10286064]
[1750539700560,6.6154,138.38,138.34,25.97998553]
[1750539700756,6.6154,138.38,138.34,35.10286064]
[1750539702391,16.47827511,138.38,138.34,16.3514424]
[1750539702587,16.47827511,138.38,138.34,7.22856729]
[1750539702761,16.47827511,138.38,138.34,16.3514424]
[1750539703677,9.12287511,138.36,138.32,7.22961249]
[1750539703882,11.51687511,138.35,138.32,7.22961249]
[1750539705504,9.12287511,138.34,138.32,7.22961249]
[1750539706797,9.12287511,138.34,138.31,7.2301352]
[1750539708999,9.12287511,138.32,138.3,7.23065798]
[1750539709183,9.12287511,138.31,138.28,7.23170378]
[1750539710199,9.12287511,138.31,138.27,18.08040968]
[1750539710200,9.12287511,138.31,138.27,25.31263648]
[1750539710372,9.12287511,138.3,138.27,25.31263648]
[1750539712185,9.12287511,138.3,138.26,7.23274989]
[1750539712790,9.12287511,138.3,138.26,17.075625]
[1750539713496,9.12287511,138.3,138.26,35.15749972]
[1750539713798,9.12287511,138.32,138.28,9.84287511]
[1750539714010,9.12287511,138.32,138.28,0.72]
[1750539714180,9.12287511,138.32,138.28,9.84287511]
[1750539714376,9.86287511,138.32,138.29,7.23118085]
[1750539715487,9.86287511,138.32,138.27,16.35510191]
[1750539716100,9.12287511,138.32,138.27,7.2322268]
[1750539716298,0.74,138.31,138.27,16.35510191]
[1750539717685,9.86287511,138.31,138.27,16.35510191]
[1750539718201,9.86287511,138.31,138.27,7.2322268]
[1750539718391,9.86287511,138.31,138.27,16.35510191]
[1750539718811,1.5431,138.3,138.27,7.2322268]
[1750539719003,11.40597511,138.3,138.27,7.2322268]
[1750539719789,9.12287511,138.29,138.27,7.2322268]
[1750539720522,9.86287511,138.29,138.25,7.23327305]
[1750539720824,9.86287511,138.26,138.21,27.21002508]
[1750539721135,9.12287511,138.23,138.2,6.5]
[1750539721306,9.12287511,138.23,138.2,7.23589001]
[1750539721684,9.86287511,138.23,138.2,7.23589001]
[1750539721888,9.12287511,138.23,138.2,7.23589001]
[1750539722320,2.2831,138.25,138.2,7.23589001]
[1750539722321,10.66597511,138.25,138.21,0.72]
[1750539722502,10.66597511,138.25,138.21,9.84287511]
[1750539722917,10.66597511,138.25,138.21,9.12287511]
[1750539723414,10.66597511,138.25,138.22,7.234843]
[1750539723916,11.40597511,138.25,138.22,7.234843]
[1750539724287,6.5541,138.28,138.24,9.12287511]
[1750539724505,6.5541,138.28,138.25,9.12287511]
[1750539725418,6.5541,138.28,138.27,16.35510191]
[1750539725620,6.5541,138.28,138.27,7.2322268]
[1750539725828,6.5541,138.28,138.27,16.35510191]
[1750539725992,6.5541,138.28,138.27,7.2322268]
[1750539726194,6.5541,138.28,138.27,16.35510191]
[1750539727821,6.5541,138.28,138.27,7.2322268]
[1750539728125,16.41697511,138.28,138.23,9.12287511]
[1750539728332,1.6029,138.29,138.27,9.12287511]
[1750539728497,1.6029,138.29,138.28,9.12287511]
[1750539728695,7.7623,138.32,138.28,9.12287511]
[1750539728891,7.7623,138.32,138.24,9.12287511]
[1750539728892,7.7623,138.32,138.29,9.12287511]
[1750539729123,8.5023,138.32,138.29,9.12287511]
[1750539729312,8.5023,138.32,138.3,7.23065798]
[1750539730928,0.74,138.31,138.29,7.23097171]
[1750539731422,9.12287511,138.31,138.28,7.23170378]
[1750539731629,9.80287511,138.31,138.28,7.23170378]
[1750539731810,0.68,138.3,138.27,16.35493813]
[1750539732410,0.68,138.31,138.27,16.35493813]
[1750539733222,9.80287511,138.31,138.27,16.35493813]
[1750539737636,0.68,138.31,138.27,16.35493813]
[1750539738615,9.12287511,138.31,138.27,7.23206302]
[1750539738801,0.68,138.3,138.27,16.35493813]
[1750539739204,9.12287511,138.29,138.25,9.12287511]
[1750539739404,0.68,138.28,138.24,16.3566714]
[1750539740705,9.12287511,138.29,138.24,16.3566714]
[1750539740910,8.4423,138.32,138.28,9.12287511]
[1750539741111,8.4423,138.32,138.29,9.12287511]
[1750539741419,7.7623,138.32,138.29,9.12287511]
[1750539742237,7.7623,138.32,138.3,7.23065798]
[1750539742712,8.4423,138.32,138.3,7.23065798]
[1750539744119,17.56517511,138.32,138.3,7.23065798]
[1750539744342,17.56517511,138.32,138.29,7.23118085]
[1750539744718,0.68,138.31,138.29,7.23118085]
[1750539745120,9.80287511,138.31,138.29,7.23118085]
[1750539745541,0.68,138.31,138.29,7.23118085]
[1750539746845,0.68,138.31,138.28,7.23170378]
[1750539747221,0.68,138.3,138.28,7.23170378]
[1750539747421,0.68,138.29,138.28,7.23170378]
[1750539748046,0.68,138.29,138.26,9.12287511]
[1750539749044,0.68,138.29,138.27,7.2322268]
[1750539749551,0.68,138.29,138.26,16.35541309]
[1750539749751,0.68,138.29,138.26,7.23253798]
[1750539751136,0.68,138.29,138.25,7.23327305]
[1750539751338,0.68,138.28,138.25,16.35614816]
[1750539751938,0.68,138.28,138.22,7.234843]
[1750539751939,0.68,138.26,138.22,7.234843]
[1750539752136,8.1398,138.28,138.25,9.12287511]
[1750539752449,155.16,138.31,138.27,9.12287511]
[1750539752450,150.2057,138.31,138.27,9.12287511]
[1750539752639,150.2057,138.31,138.28,9.12287511]
[1750539753258,149.5257,138.31,138.28,9.12287511]
[1750539753438,150.2057,138.31,138.28,9.12287511]
[1750539755156,150.2057,138.31,138.28,16.35412713]
[1750539755757,2.2057,138.31,138.28,16.35412713]
[1750539756853,0.68,138.3,138.28,7.23125202]
[1750539757358,1.5257,138.31,138.28,7.23125202]
[1750539757853,2.2057,138.31,138.28,7.23125202]
[1750539758861,1.5257,138.31,138.28,16.35412713]
[1750539759066,2.2057,138.31,138.28,16.35412713]
[1750539759241,2.2057,138.31,138.28,7.23125202]
[1750539760064,0.68,138.3,138.28,7.23125202]
[1750539760362,2.2057,138.31,138.28,7.23125202]
[1750539763044,1.5257,138.31,138.29,9.12287511]
[1750539763535,2.2357,138.31,138.28,16.35412713]
[1750539763743,2.2357,138.31,138.28,7.23125202]
[1750539765966,11.35857511,138.31,138.28,7.23125202]
[1750539767581,2.2357,138.31,138.27,7.2322268]
[1750539767884,11.35857511,138.31,138.27,7.2322268]
[1750539768541,11.35857511,138.31,138.27,17.07510191]
[1750539768770,2.2357,138.31,138.27,17.07510191]
[1750539769267,0.71,138.3,138.27,16.35510191]
[1750539770571,2.2357,138.31,138.27,17.07510191]
[1750539771567,1.5257,138.31,138.28,0.72]
[1750539771745,2.2357,138.31,138.27,17.07510191]
[1750539772738,2.2357,138.31,138.27,7.2322268]
[1750539772941,2.2357,138.31,138.27,16.35510191]
[1750539773259,0.71,138.29,138.23,0.72]
[1750539773459,0.71,138.28,138.24,9.12287511]
[1750539773669,0.71,138.28,138.23,35.84287511]
[1750539774060,9.83287511,138.28,138.23,35.84287511]
[1750539774353,9.83287511,138.28,138.24,9.12287511]
[1750539774684,9.83287511,138.28,138.24,16.3566714]
[1750539774845,9.83287511,138.28,138.24,7.23379629]
[1750539775039,9.12287511,138.28,138.24,7.23379629]
[1750539775245,2.3744,138.26,138.24,7.23379629]
[1750539775488,11.49727511,138.26,138.23,7.23408602]
[1750539775677,2.3744,138.26,138.23,7.23408602]
[1750539777086,11.49727511,138.26,138.23,7.23408602]
[1750539777879,10.78727511,138.26,138.22,7.23463883]
[1750539778058,0.71,138.24,138.22,7.23463883]
[1750539778259,9.12287511,138.25,138.22,7.23463883]
[1750539778565,9.83287511,138.25,138.22,7.23463883]
[1750539779870,9.83287511,138.25,138.2,25.3254063]
[1750539780081,9.83287511,138.25,138.21,9.12287511]
[1750539780974,9.83287511,138.25,138.2,25.3254063]
[1750539781156,9.83287511,138.25,138.21,9.12287511]
[1750539782794,9.83287511,138.25,138.2,34.44828141]
[1750539782988,9.83287511,138.25,138.2,35.16828141]
[1750539783562,156.89715919,138.26,138.2,17.07876512]
[1750539783563,9.83287511,138.24,138.2,17.07876512]
[1750539784059,9.83287511,138.24,138.2,7.95589001]
[1750539784264,9.12287511,138.23,138.2,7.23589001]
[1750539784478,0.71,138.23,138.2,7.23589001]
[1750539784658,9.83287511,138.25,138.2,17.07876512]
[1750539784858,9.12287511,138.24,138.2,17.07876512]
[1750539785569,9.12287511,138.24,138.2,7.95589001]
[1750539785781,9.12287511,138.24,138.2,17.07876512]
[1750539786189,149.6644,138.26,138.22,9.84287511]
[1750539786390,149.6644,138.26,138.24,9.84287511]
[1750539786566,1.6644,138.26,138.24,9.12287511]
[1750539786783,1.6644,138.26,138.24,9.84287511]
[1750539787164,9.12287511,138.29,138.25,0.72]
[1750539787777,9.12287511,138.29,138.26,7.23274989]
[1750539787980,9.12287511,138.28,138.26,7.23274989]
[1750539789286,9.12287511,138.28,138.24,9.12287511]
[1750539789287,9.12287511,138.27,138.23,9.84287511]
[1750539789674,9.83287511,138.26,138.22,16.35771811]
[1750539790184,9.12287511,138.26,138.22,16.35771811]
[1750539790365,9.83287511,138.26,138.22,16.35771811]
[1750539790758,0.71,138.25,138.22,16.35771811]
[1750539791187,9.12287511,138.26,138.22,16.35771811]
[1750539791372,9.84287511,138.26,138.22,7.234843]
[1750539791572,9.84287511,138.26,138.22,16.35771811]
[1750539792285,9.84287511,138.25,138.22,7.234843]
[1750539792589,0.72,138.24,138.22,7.234843]
[1750539792886,0.72,138.24,138.2,35.12287511]
[1750539793091,0.72,138.24,138.21,7.23515874]
[1750539793590,9.84287511,138.24,138.21,7.23515874]
[1750539794487,0.72,138.23,138.21,7.23515874]
[1750539794705,9.84287511,138.24,138.21,7.23515874]
[1750539795584,15.17937511,138.25,138.21,17.06803385]
[1750539795784,0.72,138.26,138.21,17.06803385]
[1750539795785,149.6118,138.27,138.24,9.83287511]
[1750539796309,6.6494,138.29,138.26,16.355625]
[1750539796708,6.6494,138.29,138.26,7.23274989]
[1750539796882,6.6494,138.29,138.26,16.355625]
[1750539799011,16.49227511,138.29,138.26,7.23274989]
[1750539799810,6.6494,138.29,138.26,16.355625]
[1750539800204,6.6494,138.29,138.26,7.23274989]
[1750539802608,0.72,138.28,138.26,7.23274989]
[1750539805091,9.84287511,138.28,138.26,7.23274989]
[1750539805856,9.84287511,138.28,138.21,27.21111999]
[1750539805857,0.72,138.26,138.21,27.21111999]
[1750539806023,9.84287511,138.26,138.22,7.234843]
[1750539806592,0.72,138.25,138.22,7.234843]
[1750539807119,9.84287511,138.26,138.22,7.234843]
[1750539809908,9.12287511,138.25,138.21,25.32361135]
[1750539810103,10.66697511,138.26,138.21,17.06824158]
[1750539810322,10.66697511,138.26,138.22,9.83287511]
[1750539810323,1.5441,138.26,138.22,9.83287511]
[1750539810498,10.66697511,138.26,138.22,9.12287511]
[1750539810694,10.66697511,138.26,138.22,9.83287511]
[1750539810906,1.5441,138.26,138.22,9.83287511]
[1750539812022,1.5441,138.26,138.23,7.23431961]
[1750539812222,1.5441,138.26,138.23,17.06719472]
[1750539814839,148.0,138.28,138.25,26.0]
[1750539815009,148.0,138.28,138.26,35.12287511]
[1750539815335,148.0,138.28,138.27,9.83287511]
[1750539815841,148.0,138.28,138.27,0.71]
[1750539816122,148.0,138.28,138.27,9.12287511]
[1750539816798,148.0,138.28,138.27,16.35510191]
[1750539816999,1.5441,138.3,138.27,16.35510191]
[1750539818019,1.5441,138.3,138.28,9.12287511]
[1750539818530,0.72,138.32,138.28,9.12287511]
[1750539818744,16.97047511,138.33,138.29,7.23118085]
[1750539818904,17.69047511,138.33,138.29,16.35405596]
[1750539821418,17.69047511,138.33,138.29,42.35405596]
[1750539821816,7.8476,138.33,138.3,9.12287511]
[1750539822022,7.8476,138.33,138.31,9.12287511]
[1750539822224,7.8476,138.33,138.3,9.12287511]
[1750539822815,8.5976,138.33,138.3,9.12287511]
[1750539823013,8.5976,138.33,138.29,51.30913297]
[1750539823213,8.5976,138.33,138.29,60.43200808]
[1750539824041,8.5976,138.33,138.29,61.17200808]
[1750539824226,7.8476,138.33,138.29,61.17200808]